[Event "Titled Tuesday Blitz May 03 Early 2022"]
[White "Reprintsev, Alexander"]
[Black "Lopez, Henry"]
[WhiteFideId "14100541"]
[BlackFideId "5203830"]
[WhiteElo "2108"]
[BlackElo "2177"]
[Result "0-1"]
[Round "04"]
[TimeControl "180+1"]
[Date "2022.05.03"]
[WhiteClock "0:01:17"]
[BlackClock "0:00:23"]

1. e4 {[%clk 0:02:55]}  c5 {[%clk 0:02:57]} 2. b3 {[%clk 0:02:54]}  g6 {[%clk 0:02:51]} 3. Bb2 {[%clk 0:02:54]}  Nf6 {[%clk 0:02:51]} 4. e5 {[%clk 0:02:54]}  Nd5 {[%clk 0:02:51]} 5. Nc3 {[%clk 0:02:54]}  Nb6 {[%clk 0:02:44]} 6. Nf3 {[%clk 0:02:51]}  Bg7 {[%clk 0:02:43]} 7. a4 {[%clk 0:02:46]}  d6 {[%clk 0:02:33]} 8. a5 {[%clk 0:02:25]}  N6d7 {[%clk 0:02:30]} 9. exd6 {[%clk 0:02:25]}  exd6 {[%clk 0:02:18]} 10. Qe2+ {[%clk 0:02:25]}  Ne5 {[%clk 0:02:14]} 11. Nd5 {[%clk 0:02:18]}  Nc6 {[%clk 0:02:08]} 12. Nxe5 {[%clk 0:02:17]}  dxe5 {[%clk 0:02:08]} 13. c4 {[%clk 0:02:13]}  O-O {[%clk 0:02:06]} 14. a6 {[%clk 0:02:00]}  bxa6 {[%clk 0:02:03]} 15. g3 {[%clk 0:01:58]}  Nd4 {[%clk 0:01:54]} 16. Qd1 {[%clk 0:01:53]}  Bf5 {[%clk 0:01:44]} 17. d3 {[%clk 0:01:53]}  e4 {[%clk 0:01:44]} 18. Bg2 {[%clk 0:01:49]}  exd3 {[%clk 0:01:43]} 19. Bxd4 {[%clk 0:01:39]}  Bxd4 {[%clk 0:01:39]} 20. O-O {[%clk 0:01:40]}  h5 {[%clk 0:01:30]} 21. Rxa6 {[%clk 0:01:38]}  Re8 {[%clk 0:01:28]} 22. Qd2 {[%clk 0:01:34]}  Re2 {[%clk 0:01:20]} 23. Qf4 {[%clk 0:01:33]}  Rb8 {[%clk 0:01:11]} 24. Bf3 {[%clk 0:01:33]}  Rxb3 {[%clk 0:00:45]} 25. Bxe2 {[%clk 0:01:26]}  dxe2 {[%clk 0:00:45]} 26. Re1 {[%clk 0:01:27]}  Qe8 {[%clk 0:00:37]} 27. Qxd4 {[%clk 0:01:20]}  cxd4 {[%clk 0:00:33]} 28. Nf6+ {[%clk 0:01:20]}  Kf8 {[%clk 0:00:34]} 29. Nxe8 {[%clk 0:01:20]}  d3 {[%clk 0:00:29]} 30. Nd6 {[%clk 0:01:17]}  d2 {[%clk 0:00:26]} 31. Raa1 {[%clk 0:01:17]}  Bb1 {[%clk 0:00:23]} 0-1


[Site "https://www.chess.com"]

[Event "Titled Tuesday Blitz May 03 Early 2022"]
[White "Rodchenkov, Sergey D."]
[Black "Nan, M K Khine Hlyan"]
[WhiteFideId "4168712"]
[BlackFideId "13002899"]
[WhiteElo "2306"]
[BlackElo "1943"]
[Result "1-0"]
[Round "04"]
[TimeControl "180+1"]
[Date "2022.05.03"]
[WhiteClock "0:01:33"]
[BlackClock "0:01:18"]

1. e4 {[%clk 0:03:00]}  e5 {[%clk 0:02:58]} 2. Nf3 {[%clk 0:02:53]}  Nc6 {[%clk 0:02:58]} 3. Bc4 {[%clk 0:02:52]}  Bc5 {[%clk 0:02:57]} 4. O-O {[%clk 0:02:50]}  Nf6 {[%clk 0:02:57]} 5. d3 {[%clk 0:02:50]}  h6 {[%clk 0:02:56]} 6. Nbd2 {[%clk 0:02:50]}  O-O {[%clk 0:02:56]} 7. c3 {[%clk 0:02:46]}  d6 {[%clk 0:02:56]} 8. h3 {[%clk 0:02:44]}  Be6 {[%clk 0:02:54]} 9. Bxe6 {[%clk 0:02:40]}  fxe6 {[%clk 0:02:54]} 10. b4 {[%clk 0:02:39]}  Bb6 {[%clk 0:02:52]} 11. a4 {[%clk 0:02:40]}  a5 {[%clk 0:02:45]} 12. b5 {[%clk 0:02:39]}  Ne7 {[%clk 0:02:43]} 13. Nc4 {[%clk 0:02:38]}  Ng6 {[%clk 0:02:40]} 14. Nxb6 {[%clk 0:02:26]}  cxb6 {[%clk 0:02:39]} 15. Re1 {[%clk 0:02:20]}  Nf4 {[%clk 0:02:38]} 16. Bxf4 {[%clk 0:02:19]}  exf4 {[%clk 0:02:38]} 17. e5 {[%clk 0:02:09]}  dxe5 {[%clk 0:02:35]} 18. Rxe5 {[%clk 0:02:10]}  Qd6 {[%clk 0:02:21]} 19. d4 {[%clk 0:02:01]}  Nd5 {[%clk 0:02:20]} 20. Qb3 {[%clk 0:01:58]}  Rac8 {[%clk 0:02:16]} 21. Rae1 {[%clk 0:01:54]}  Rxc3 {[%clk 0:02:13]} 22. Rxd5 {[%clk 0:01:54]}  Rxf3 {[%clk 0:02:00]} 23. Rxd6 {[%clk 0:01:46]}  Rxb3 {[%clk 0:01:58]} 24. Rxb6 {[%clk 0:01:46]}  Rb4 {[%clk 0:01:57]} 25. Rxb7 {[%clk 0:01:45]}  Rxd4 {[%clk 0:01:56]} 26. Ra7 {[%clk 0:01:39]}  Rxa4 {[%clk 0:01:56]} 27. Rb1 {[%clk 0:01:40]}  e5 {[%clk 0:01:53]} 28. b6 {[%clk 0:01:38]}  Rb4 {[%clk 0:01:44]} 29. Rxb4 {[%clk 0:01:34]}  axb4 {[%clk 0:01:44]} 30. b7 {[%clk 0:01:34]}  b3 {[%clk 0:01:39]} 31. Ra8 {[%clk 0:01:33]}  b2 {[%clk 0:01:22]} 32. Rxf8+ {[%clk 0:01:33]}  Kxf8 {[%clk 0:01:18]} 33. b8=Q+ {[%clk 0:01:33]} 1-0


[Site "https://www.chess.com"]

[Event "Titled Tuesday Blitz May 03 Early 2022"]
[White "Sailer, Mike"]
[Black "Valle Maytin, Luis Enrique"]
[WhiteFideId "2012901"]
[BlackFideId "3503666"]
[WhiteElo "2109"]
[BlackElo "2301"]
[Result "1-0"]
[Round "04"]
[TimeControl "180+1"]
[Date "2022.05.03"]
[WhiteClock "0:00:25"]
[BlackClock "0:00:02"]

1. d4 {[%clk 0:02:58]}  Nf6 {[%clk 0:02:59]} 2. Nf3 {[%clk 0:02:57]}  e6 {[%clk 0:02:54]} 3. Bg5 {[%clk 0:02:55]}  Be7 {[%clk 0:02:51]} 4. e3 {[%clk 0:02:45]}  h6 {[%clk 0:02:47]} 5. Bh4 {[%clk 0:02:45]}  O-O {[%clk 0:02:38]} 6. Be2 {[%clk 0:02:38]}  d6 {[%clk 0:02:32]} 7. O-O {[%clk 0:02:35]}  Nc6 {[%clk 0:02:32]} 8. c4 {[%clk 0:02:34]}  e5 {[%clk 0:02:30]} 9. Nc3 {[%clk 0:02:34]}  Bg4 {[%clk 0:02:28]} 10. h3 {[%clk 0:02:25]}  Bh5 {[%clk 0:02:22]} 11. Bxf6 {[%clk 0:02:24]}  Bxf6 {[%clk 0:02:21]} 12. Nd5 {[%clk 0:02:23]}  e4 {[%clk 0:02:09]} 13. Nd2 {[%clk 0:02:15]}  Bg6 {[%clk 0:02:08]} 14. b4 {[%clk 0:01:51]}  Re8 {[%clk 0:02:03]} 15. b5 {[%clk 0:01:50]}  Nb8 {[%clk 0:02:01]} 16. a4 {[%clk 0:01:49]}  c6 {[%clk 0:02:00]} 17. Nxf6+ {[%clk 0:01:46]}  Qxf6 {[%clk 0:01:59]} 18. a5 {[%clk 0:01:41]}  Nd7 {[%clk 0:01:57]} 19. a6 {[%clk 0:01:41]}  bxa6 {[%clk 0:00:37]} 20. bxc6 {[%clk 0:01:41]}  Nb6 {[%clk 0:00:32]} 21. Rxa6 {[%clk 0:01:37]}  Rec8 {[%clk 0:00:24]} 22. d5 {[%clk 0:01:30]}  Qe5 {[%clk 0:00:21]} 23. Nb3 {[%clk 0:01:28]}  f5 {[%clk 0:00:20]} 24. Qd4 {[%clk 0:01:06]}  Qe7 {[%clk 0:00:13]} 25. c5 {[%clk 0:01:01]}  dxc5 {[%clk 0:00:13]} 26. Nxc5 {[%clk 0:00:55]}  Rd8 {[%clk 0:00:12]} 27. Rxb6 {[%clk 0:00:46]}  axb6 {[%clk 0:00:10]} 28. Ne6 {[%clk 0:00:45]}  Rd6 {[%clk 0:00:04]} 29. Bc4 {[%clk 0:00:33]}  Be8 {[%clk 0:00:04]} 30. Qxb6 {[%clk 0:00:28]}  Ra2 {[%clk 0:00:02]} 31. Bxa2 {[%clk 0:00:27]}  Bf7 {[%clk 0:00:01]} 32. Qb8+ {[%clk 0:00:24]}  Kh7 {[%clk 0:00:01]} 33. Nf8+ {[%clk 0:00:24]}  Kh8 {[%clk 0:00:02]} 34. Ng6+ {[%clk 0:00:25]}  Kh7 {[%clk 0:00:02]} 35. Nxe7 {[%clk 0:00:25]} 1-0


[Site "https://www.chess.com"]

[Event "Titled Tuesday Blitz May 03 Early 2022"]
[White "Samadov, Read"]
[Black "Safarli, Eltaj"]
[WhiteFideId "13417444"]
[BlackFideId "13402129"]
[WhiteElo "2084"]
[BlackElo "2634"]
[Result "0-1"]
[Round "04"]
[TimeControl "180+1"]
[Date "2022.05.03"]
[WhiteClock "0:00:05"]
[BlackClock "0:01:25"]

1. d4 {[%clk 0:03:00]}  Nf6 {[%clk 0:02:59]} 2. c4 {[%clk 0:03:00]}  e6 {[%clk 0:03:00]} 3. Nf3 {[%clk 0:03:00]}  d5 {[%clk 0:03:00]} 4. g3 {[%clk 0:03:00]}  Be7 {[%clk 0:03:00]} 5. Bg2 {[%clk 0:03:00]}  O-O {[%clk 0:03:00]} 6. O-O {[%clk 0:03:01]}  dxc4 {[%clk 0:03:00]} 7. Qc2 {[%clk 0:03:01]}  a6 {[%clk 0:03:01]} 8. a4 {[%clk 0:03:01]}  Nc6 {[%clk 0:02:59]} 9. Qxc4 {[%clk 0:03:01]}  Na5 {[%clk 0:03:00]} 10. Qc2 {[%clk 0:03:00]}  b6 {[%clk 0:03:00]} 11. Nc3 {[%clk 0:02:59]}  Bb7 {[%clk 0:03:00]} 12. Rd1 {[%clk 0:03:00]}  Nd5 {[%clk 0:02:55]} 13. e4 {[%clk 0:02:22]}  Nb4 {[%clk 0:02:55]} 14. Qe2 {[%clk 0:02:22]}  Nb3 {[%clk 0:02:54]} 15. Rb1 {[%clk 0:02:22]}  a5 {[%clk 0:02:55]} 16. Bf4 {[%clk 0:02:14]}  Ba6 {[%clk 0:02:54]} 17. Nb5 {[%clk 0:02:13]}  c6 {[%clk 0:02:51]} 18. Qe3 {[%clk 0:02:09]}  cxb5 {[%clk 0:02:48]} 19. axb5 {[%clk 0:02:03]}  Bb7 {[%clk 0:02:47]} 20. Qxb3 {[%clk 0:02:01]}  Bxe4 {[%clk 0:02:47]} 21. Rbc1 {[%clk 0:02:01]}  Rc8 {[%clk 0:02:09]} 22. Rxc8 {[%clk 0:01:53]}  Qxc8 {[%clk 0:02:10]} 23. Rc1 {[%clk 0:01:53]}  Qa8 {[%clk 0:02:10]} 24. Qe3 {[%clk 0:01:28]}  Qd5 {[%clk 0:02:06]} 25. Rc7 {[%clk 0:01:19]}  Bf6 {[%clk 0:02:02]} 26. g4 {[%clk 0:00:45]}  Nc2 {[%clk 0:01:51]} 27. Rxc2 {[%clk 0:00:34]}  Bxc2 {[%clk 0:01:52]} 28. g5 {[%clk 0:00:29]}  Be7 {[%clk 0:01:49]} 29. Ne5 {[%clk 0:00:29]}  Qb3 {[%clk 0:01:48]} 30. Qd2 {[%clk 0:00:24]}  Bb4 {[%clk 0:01:44]} 31. Qe2 {[%clk 0:00:23]}  Bf5 {[%clk 0:01:43]} 32. Nd7 {[%clk 0:00:21]}  Rd8 {[%clk 0:01:40]} 33. Nxb6 {[%clk 0:00:21]}  Rxd4 {[%clk 0:01:40]} 34. Qe5 {[%clk 0:00:08]}  Qd1+ {[%clk 0:01:25]} 35. Bf1 {[%clk 0:00:08]}  Bh3 {[%clk 0:01:24]} 36. Qb8+ {[%clk 0:00:05]}  Bf8 {[%clk 0:01:25]} 0-1


[Site "https://www.chess.com"]

[Event "Titled Tuesday Blitz May 03 Early 2022"]
[White "Samant Aditya S"]
[Black "Lamaze, Simon"]
[WhiteFideId "35080580"]
[BlackFideId "36069264"]
[WhiteElo "1916"]
[BlackElo "1999"]
[Result "1-0"]
[Round "04"]
[TimeControl "180+1"]
[Date "2022.05.03"]
[WhiteClock "0:00:05"]
[BlackClock "0:00:21"]

1. e4 {[%clk 0:03:00]}  c5 {[%clk 0:02:59]} 2. Nf3 {[%clk 0:03:01]}  Nc6 {[%clk 0:02:59]} 3. d4 {[%clk 0:03:01]}  cxd4 {[%clk 0:03:00]} 4. Nxd4 {[%clk 0:03:02]}  Nf6 {[%clk 0:03:00]} 5. Nc3 {[%clk 0:03:03]}  d6 {[%clk 0:03:00]} 6. Bg5 {[%clk 0:03:02]}  Bd7 {[%clk 0:02:59]} 7. Qd2 {[%clk 0:03:02]}  a6 {[%clk 0:02:56]} 8. Bxf6 {[%clk 0:02:54]}  gxf6 {[%clk 0:02:55]} 9. Bc4 {[%clk 0:02:54]}  e6 {[%clk 0:02:54]} 10. Bb3 {[%clk 0:02:53]}  h5 {[%clk 0:02:53]} 11. f4 {[%clk 0:02:48]}  Bh6 {[%clk 0:02:51]} 12. g3 {[%clk 0:02:48]}  Qb6 {[%clk 0:02:42]} 13. O-O-O {[%clk 0:02:14]}  O-O-O {[%clk 0:02:40]} 14. Nf3 {[%clk 0:02:06]}  Be8 {[%clk 0:02:38]} 15. Kb1 {[%clk 0:02:06]}  Kb8 {[%clk 0:02:37]} 16. Qe2 {[%clk 0:02:01]}  Bf8 {[%clk 0:02:31]} 17. Rd2 {[%clk 0:01:48]}  Qa5 {[%clk 0:02:25]} 18. Rhd1 {[%clk 0:01:48]}  Be7 {[%clk 0:02:18]} 19. a3 {[%clk 0:01:23]}  Bd7 {[%clk 0:02:17]} 20. Qe3 {[%clk 0:01:20]}  Rc8 {[%clk 0:02:09]} 21. Na4 {[%clk 0:01:15]}  Kc7 {[%clk 0:01:51]} 22. Rd3 {[%clk 0:01:01]}  b5 {[%clk 0:01:48]} 23. Nc5 {[%clk 0:01:00]}  Qb6 {[%clk 0:01:39]} 24. Nxd7 {[%clk 0:00:59]}  Qxe3 {[%clk 0:01:40]} 25. Rxe3 {[%clk 0:01:00]}  Kxd7 {[%clk 0:01:41]} 26. Red3 {[%clk 0:00:54]}  Na5 {[%clk 0:01:40]} 27. Ba2 {[%clk 0:00:54]}  Nc4 {[%clk 0:01:40]} 28. Rd4 {[%clk 0:00:35]}  Nb6 {[%clk 0:01:38]} 29. Bb3 {[%clk 0:00:33]}  a5 {[%clk 0:01:37]} 30. c3 {[%clk 0:00:30]}  Rc5 {[%clk 0:01:37]} 31. Kc2 {[%clk 0:00:20]}  a4 {[%clk 0:01:35]} 32. Ba2 {[%clk 0:00:20]}  Rhc8 {[%clk 0:01:28]} 33. Rb4 {[%clk 0:00:16]}  Na8 {[%clk 0:01:14]} 34. Nd4 {[%clk 0:00:08]}  Nc7 {[%clk 0:01:14]} 35. Kd3 {[%clk 0:00:06]}  Rg8 {[%clk 0:01:14]} 36. c4 {[%clk 0:00:06]}  bxc4+ {[%clk 0:01:07]} 37. Rxc4 {[%clk 0:00:07]}  h4 {[%clk 0:01:03]} 38. Rxc5 {[%clk 0:00:06]}  dxc5 {[%clk 0:01:04]} 39. Ne2 {[%clk 0:00:06]}  hxg3 {[%clk 0:01:00]} 40. hxg3 {[%clk 0:00:07]}  Kc6 {[%clk 0:01:00]} 41. Bc4 {[%clk 0:00:06]}  Rb8 {[%clk 0:01:00]} 42. Kc2 {[%clk 0:00:06]}  Rh8 {[%clk 0:00:58]} 43. Rd2 {[%clk 0:00:05]}  Rh3 {[%clk 0:00:55]} 44. Rd3 {[%clk 0:00:05]}  Rh2 {[%clk 0:00:55]} 45. Rd2 {[%clk 0:00:06]}  Rg2 {[%clk 0:00:55]} 46. Kd1 {[%clk 0:00:03]}  Na8 {[%clk 0:00:37]} 47. Nd4+ {[%clk 0:00:03]}  cxd4 {[%clk 0:00:37]} 48. Rxg2 {[%clk 0:00:04]}  Nb6 {[%clk 0:00:31]} 49. Bd3 {[%clk 0:00:04]}  f5 {[%clk 0:00:29]} 50. exf5 {[%clk 0:00:04]}  Nd5 {[%clk 0:00:29]} 51. Rc2+ {[%clk 0:00:03]}  Kd6 {[%clk 0:00:29]} 52. Rh2 {[%clk 0:00:03]}  exf5 {[%clk 0:00:29]} 53. Kd2 {[%clk 0:00:04]}  Bd8 {[%clk 0:00:28]} 54. Rh6+ {[%clk 0:00:04]}  Kc5 {[%clk 0:00:27]} 55. Rh7 {[%clk 0:00:03]}  Ba5+ {[%clk 0:00:27]} 56. Ke2 {[%clk 0:00:04]}  f6 {[%clk 0:00:22]} 57. Ra7 {[%clk 0:00:04]}  Kb6 {[%clk 0:00:21]} 58. Ra6+ {[%clk 0:00:05]} 1-0


[Site "https://www.chess.com"]

[Event "Titled Tuesday Blitz May 03 Early 2022"]
[White "Sanchez, Robert"]
[Black "Zavgorodniy, Sergiy"]
[WhiteFideId "2034360"]
[BlackFideId "14110148"]
[WhiteElo "2439"]
[BlackElo "2420"]
[Result "1-0"]
[Round "04"]
[TimeControl "180+1"]
[Date "2022.05.03"]
[WhiteClock "0:01:06"]
[BlackClock "0:00:06"]

1. e4 {[%clk 0:03:00]}  e5 {[%clk 0:02:56]} 2. Nf3 {[%clk 0:03:01]}  d6 {[%clk 0:02:29]} 3. Bc4 {[%clk 0:02:59]}  Be7 {[%clk 0:02:28]} 4. d3 {[%clk 0:02:57]}  Nf6 {[%clk 0:02:27]} 5. h3 {[%clk 0:02:56]}  O-O {[%clk 0:02:28]} 6. O-O {[%clk 0:02:56]}  c6 {[%clk 0:02:27]} 7. a4 {[%clk 0:02:56]}  Nbd7 {[%clk 0:02:18]} 8. Nc3 {[%clk 0:02:51]}  Nc5 {[%clk 0:02:15]} 9. Be3 {[%clk 0:02:33]}  d5 {[%clk 0:02:13]} 10. Bxc5 {[%clk 0:02:31]}  Bxc5 {[%clk 0:02:11]} 11. exd5 {[%clk 0:02:28]}  cxd5 {[%clk 0:02:12]} 12. Bb3 {[%clk 0:02:26]}  Re8 {[%clk 0:02:05]} 13. Re1 {[%clk 0:02:24]}  Qb6 {[%clk 0:01:27]} 14. Rxe5 {[%clk 0:02:12]}  Bxf2+ {[%clk 0:01:23]} 15. Kh1 {[%clk 0:02:10]}  Be6 {[%clk 0:00:57]} 16. Qe2 {[%clk 0:02:01]}  Bg3 {[%clk 0:00:56]} 17. Rf1 {[%clk 0:01:54]}  Bxe5 {[%clk 0:00:54]} 18. Nxe5 {[%clk 0:01:54]}  Qd4 {[%clk 0:00:54]} 19. Nb5 {[%clk 0:01:52]}  Qxb2 {[%clk 0:00:35]} 20. Nc7 {[%clk 0:01:50]}  Bg4 {[%clk 0:00:33]} 21. hxg4 {[%clk 0:01:42]}  Rxe5 {[%clk 0:00:33]} 22. Qf3 {[%clk 0:01:39]}  Rc8 {[%clk 0:00:25]} 23. Nxd5 {[%clk 0:01:36]}  Rxd5 {[%clk 0:00:09]} 24. Bxd5 {[%clk 0:01:35]}  Qe5 {[%clk 0:00:08]} 25. Bxb7 {[%clk 0:01:30]}  Rxc2 {[%clk 0:00:08]} 26. d4 {[%clk 0:01:17]}  Qg5 {[%clk 0:00:05]} 27. Be4 {[%clk 0:01:12]}  Rc1 {[%clk 0:00:05]} 28. Rxc1 {[%clk 0:01:07]}  Qxc1+ {[%clk 0:00:06]} 29. Kh2 {[%clk 0:01:07]}  h6 {[%clk 0:00:06]} 30. Bd3 {[%clk 0:01:06]}  Qg5 {[%clk 0:00:06]} 31. Qa8+ {[%clk 0:01:06]} 1-0


[Site "https://www.chess.com"]

[Event "Titled Tuesday Blitz May 03 Early 2022"]
[White "Sarana, Alexey"]
[Black "Hansen, Eric"]
[WhiteFideId "24133795"]
[BlackFideId "2606771"]
[WhiteElo "2666"]
[BlackElo "2568"]
[Result "1-0"]
[Round "04"]
[TimeControl "180+1"]
[Date "2022.05.03"]
[WhiteClock "0:00:14"]
[BlackClock "0:00:02"]

1. d4 {[%clk 0:03:00]}  Nf6 {[%clk 0:02:59]} 2. c4 {[%clk 0:03:01]}  e6 {[%clk 0:03:00]} 3. Nc3 {[%clk 0:03:02]}  Bb4 {[%clk 0:03:00]} 4. e3 {[%clk 0:03:02]}  O-O {[%clk 0:03:00]} 5. Bd3 {[%clk 0:03:02]}  c5 {[%clk 0:03:00]} 6. Ne2 {[%clk 0:03:02]}  Nc6 {[%clk 0:02:59]} 7. O-O {[%clk 0:02:50]}  d6 {[%clk 0:03:00]} 8. Na4 {[%clk 0:02:34]}  cxd4 {[%clk 0:02:57]} 9. exd4 {[%clk 0:02:35]}  Ba5 {[%clk 0:02:56]} 10. a3 {[%clk 0:02:32]}  d5 {[%clk 0:02:55]} 11. c5 {[%clk 0:02:29]}  Bc7 {[%clk 0:02:54]} 12. Nac3 {[%clk 0:02:21]}  h6 {[%clk 0:02:21]} 13. b4 {[%clk 0:02:18]}  a6 {[%clk 0:02:20]} 14. h3 {[%clk 0:02:16]}  Re8 {[%clk 0:02:16]} 15. f4 {[%clk 0:02:12]}  b6 {[%clk 0:02:12]} 16. Be3 {[%clk 0:02:10]}  bxc5 {[%clk 0:02:09]} 17. bxc5 {[%clk 0:02:10]}  Rb8 {[%clk 0:02:09]} 18. Qc2 {[%clk 0:02:06]}  Ne7 {[%clk 0:02:04]} 19. Bf2 {[%clk 0:02:05]}  Nh5 {[%clk 0:01:56]} 20. Bh4 {[%clk 0:02:03]}  Qd7 {[%clk 0:01:48]} 21. g4 {[%clk 0:02:00]}  Nf6 {[%clk 0:01:46]} 22. Bxf6 {[%clk 0:01:58]}  gxf6 {[%clk 0:01:47]} 23. Ng3 {[%clk 0:01:59]}  Nc6 {[%clk 0:01:42]} 24. Nh5 {[%clk 0:01:52]}  Qe7 {[%clk 0:01:41]} 25. Ne2 {[%clk 0:01:11]}  Bd8 {[%clk 0:01:37]} 26. Rf3 {[%clk 0:01:02]}  Qb7 {[%clk 0:01:27]} 27. Qd1 {[%clk 0:00:53]}  Kf8 {[%clk 0:01:09]} 28. Bc2 {[%clk 0:00:52]}  Qc7 {[%clk 0:01:03]} 29. Ba4 {[%clk 0:00:52]}  Rb2 {[%clk 0:00:57]} 30. Qd3 {[%clk 0:00:48]}  f5 {[%clk 0:00:40]} 31. gxf5 {[%clk 0:00:36]}  exf5 {[%clk 0:00:38]} 32. Neg3 {[%clk 0:00:36]}  Re4 {[%clk 0:00:38]} 33. Bxc6 {[%clk 0:00:32]}  Qxc6 {[%clk 0:00:37]} 34. Rd1 {[%clk 0:00:31]}  Ba5 {[%clk 0:00:32]} 35. Qf1 {[%clk 0:00:26]}  Qg6 {[%clk 0:00:30]} 36. Kh1 {[%clk 0:00:24]}  Bd7 {[%clk 0:00:27]} 37. a4 {[%clk 0:00:20]}  Bxa4 {[%clk 0:00:26]} 38. Ra1 {[%clk 0:00:21]}  Rb4 {[%clk 0:00:16]} 39. Nxe4 {[%clk 0:00:17]}  fxe4 {[%clk 0:00:12]} 40. Rg3 {[%clk 0:00:17]}  Qxh5 {[%clk 0:00:13]} 41. Qxa6 {[%clk 0:00:18]}  Bc7 {[%clk 0:00:07]} 42. Qc8+ {[%clk 0:00:13]}  Be8 {[%clk 0:00:02]} 43. Qxc7 {[%clk 0:00:14]} 1-0


[Site "https://www.chess.com"]

[Event "Titled Tuesday Blitz May 03 Early 2022"]
[White "Shohat, Yotam"]
[Black "Bommini, Mounika Akshaya"]
[WhiteFideId "2813955"]
[BlackFideId "25019872"]
[WhiteElo "2119"]
[BlackElo "1671"]
[Result "1-0"]
[Round "04"]
[TimeControl "180+1"]
[Date "2022.05.03"]
[WhiteClock "0:00:07"]
[BlackClock "0:00:08"]

1. e4 {[%clk 0:03:00]}  Nc6 {[%clk 0:02:58]} 2. d4 {[%clk 0:02:57]}  e5 {[%clk 0:02:58]} 3. d5 {[%clk 0:02:53]}  Nce7 {[%clk 0:02:58]} 4. c4 {[%clk 0:02:53]}  Ng6 {[%clk 0:02:58]} 5. Be3 {[%clk 0:02:47]}  Nf6 {[%clk 0:02:57]} 6. Bd3 {[%clk 0:02:33]}  d6 {[%clk 0:02:54]} 7. h3 {[%clk 0:02:31]}  Nh4 {[%clk 0:02:50]} 8. Kf1 {[%clk 0:02:20]}  Be7 {[%clk 0:02:47]} 9. Nc3 {[%clk 0:02:20]}  h6 {[%clk 0:02:44]} 10. Nf3 {[%clk 0:02:06]}  Ng6 {[%clk 0:02:39]} 11. g3 {[%clk 0:01:49]}  O-O {[%clk 0:02:36]} 12. Kg2 {[%clk 0:01:49]}  Bd7 {[%clk 0:02:36]} 13. b4 {[%clk 0:01:34]}  Qc8 {[%clk 0:02:34]} 14. c5 {[%clk 0:01:30]}  Nh5 {[%clk 0:02:30]} 15. Qc2 {[%clk 0:00:58]}  f5 {[%clk 0:02:13]} 16. exf5 {[%clk 0:00:56]}  Bxf5 {[%clk 0:02:12]} 17. Bxf5 {[%clk 0:00:53]}  Rxf5 {[%clk 0:02:13]} 18. Rac1 {[%clk 0:00:33]}  Qf8 {[%clk 0:02:06]} 19. Qe4 {[%clk 0:00:21]}  Qf7 {[%clk 0:01:56]} 20. Ne2 {[%clk 0:00:15]}  Rf8 {[%clk 0:01:55]} 21. Neg1 {[%clk 0:00:11]}  Bd8 {[%clk 0:01:44]} 22. c6 {[%clk 0:00:10]}  bxc6 {[%clk 0:01:43]} 23. Rxc6 {[%clk 0:00:09]}  Kh8 {[%clk 0:01:22]} 24. Rc2 {[%clk 0:00:09]}  Rf6 {[%clk 0:01:12]} 25. Ne1 {[%clk 0:00:04]}  Be7 {[%clk 0:01:06]} 26. Ngf3 {[%clk 0:00:04]}  Bd8 {[%clk 0:00:58]} 27. Nh4 {[%clk 0:00:04]}  Nxh4+ {[%clk 0:00:56]} 28. Qxh4 {[%clk 0:00:05]}  Qg6 {[%clk 0:00:42]} 29. Qg4 {[%clk 0:00:04]}  Qe8 {[%clk 0:00:36]} 30. Qe4 {[%clk 0:00:04]}  Qa4 {[%clk 0:00:32]} 31. Re2 {[%clk 0:00:02]}  Be7 {[%clk 0:00:30]} 32. Nd3 {[%clk 0:00:03]}  Qb5 {[%clk 0:00:28]} 33. g4 {[%clk 0:00:03]}  Nf4+ {[%clk 0:00:16]} 34. Bxf4 {[%clk 0:00:03]}  exf4 {[%clk 0:00:16]} 35. f3 {[%clk 0:00:04]}  Bd8 {[%clk 0:00:15]} 36. Rhe1 {[%clk 0:00:04]}  R6f7 {[%clk 0:00:15]} 37. Nf2 {[%clk 0:00:04]}  Re7 {[%clk 0:00:15]} 38. Qd3 {[%clk 0:00:04]}  Qxd3 {[%clk 0:00:12]} 39. Nxd3 {[%clk 0:00:05]}  Rxe2+ {[%clk 0:00:12]} 40. Rxe2 {[%clk 0:00:05]}  Bf6 {[%clk 0:00:13]} 41. Nxf4 {[%clk 0:00:05]}  Bc3 {[%clk 0:00:10]} 42. Ng6+ {[%clk 0:00:05]}  Kg8 {[%clk 0:00:10]} 43. Nxf8 {[%clk 0:00:06]}  Kxf8 {[%clk 0:00:10]} 44. Rc2 {[%clk 0:00:06]}  Bxb4 {[%clk 0:00:09]} 45. Rxc7 {[%clk 0:00:07]}  Bc5 {[%clk 0:00:09]} 46. f4 {[%clk 0:00:06]}  Kg8 {[%clk 0:00:09]} 47. Kf3 {[%clk 0:00:06]}  Kf8 {[%clk 0:00:09]} 48. Ke4 {[%clk 0:00:07]}  Kg8 {[%clk 0:00:09]} 49. a4 {[%clk 0:00:07]}  Kf8 {[%clk 0:00:09]} 50. a5 {[%clk 0:00:06]}  Kg8 {[%clk 0:00:08]} 51. a6 {[%clk 0:00:07]}  Kf8 {[%clk 0:00:08]} 52. Kf5 {[%clk 0:00:07]} 1-0


[Site "https://www.chess.com"]